[Event "Titled Tuesday Blitz December 20 Late 2022"]
[White "Polster, Christian"]
[Black "Goncalves, Davi Sulzbacher"]
[WhiteFideId "12965081"]
[BlackFideId "2154510"]
[WhiteElo "2195"]
[BlackElo "2182"]
[Result "1/2-1/2"]
[Round "05"]
[TimeControl "180+1"]
[Date "2022.12.21"]
[WhiteClock "0:00:19"]
[BlackClock "0:00:08"]

1. e4 {[%clk 0:02:43]}  c5 {[%clk 0:02:59]} 2. Nc3 {[%clk 0:02:42]}  Nc6 {[%clk 0:02:56]} 3. Nge2 {[%clk 0:02:42]}  g6 {[%clk 0:02:56]} 4. d4 {[%clk 0:02:42]}  cxd4 {[%clk 0:02:57]} 5. Nxd4 {[%clk 0:02:43]}  Bg7 {[%clk 0:02:57]} 6. Be3 {[%clk 0:02:43]}  Nf6 {[%clk 0:02:56]} 7. Bc4 {[%clk 0:02:40]}  O-O {[%clk 0:02:54]} 8. Bb3 {[%clk 0:02:32]}  d6 {[%clk 0:02:52]} 9. f3 {[%clk 0:02:29]}  Bd7 {[%clk 0:02:51]} 10. Qd2 {[%clk 0:02:27]}  Rc8 {[%clk 0:02:46]} 11. O-O-O {[%clk 0:02:21]}  Na5 {[%clk 0:02:41]} 12. h4 {[%clk 0:02:18]}  h5 {[%clk 0:02:37]} 13. Bg5 {[%clk 0:02:17]}  Rc5 {[%clk 0:02:33]} 14. Kb1 {[%clk 0:02:04]}  b5 {[%clk 0:02:24]} 15. Qe2 {[%clk 0:01:55]}  Qb6 {[%clk 0:01:22]} 16. Bxf6 {[%clk 0:01:51]}  Bxf6 {[%clk 0:01:21]} 17. Nd5 {[%clk 0:01:51]}  Rxd5 {[%clk 0:01:15]} 18. exd5 {[%clk 0:01:37]}  Bxd4 {[%clk 0:01:09]} 19. Qxe7 {[%clk 0:01:32]}  Bf5 {[%clk 0:01:01]} 20. g4 {[%clk 0:01:29]}  hxg4 {[%clk 0:00:55]} 21. h5 {[%clk 0:01:27]}  Qd8 {[%clk 0:00:44]} 22. Qxd8 {[%clk 0:01:23]}  Rxd8 {[%clk 0:00:44]} 23. Rxd4 {[%clk 0:01:23]}  gxf3 {[%clk 0:00:43]} 24. Rf4 {[%clk 0:01:14]}  Re8 {[%clk 0:00:33]} 25. hxg6 {[%clk 0:01:02]}  fxg6 {[%clk 0:00:32]} 26. Kc1 {[%clk 0:00:47]}  Re5 {[%clk 0:00:23]} 27. Rd1 {[%clk 0:00:39]}  g5 {[%clk 0:00:20]} 28. Rxf3 {[%clk 0:00:33]}  Bg4 {[%clk 0:00:20]} 29. Rfd3 {[%clk 0:00:26]}  Bxd1 {[%clk 0:00:20]} 30. Kxd1 {[%clk 0:00:27]}  Kg7 {[%clk 0:00:19]} 31. c3 {[%clk 0:00:23]}  g4 {[%clk 0:00:18]} 32. Rg3 {[%clk 0:00:21]}  Rg5 {[%clk 0:00:16]} 33. Ke2 {[%clk 0:00:20]}  Kf6 {[%clk 0:00:16]} 34. Ke3 {[%clk 0:00:19]}  Nxb3 {[%clk 0:00:15]} 35. axb3 {[%clk 0:00:19]}  Ke5 {[%clk 0:00:10]} 36. c4 {[%clk 0:00:19]}  Rh5 {[%clk 0:00:07]} 37. Rxg4 {[%clk 0:00:18]}  Rh3+ {[%clk 0:00:08]} 38. Kd2 {[%clk 0:00:19]}  Rxb3 {[%clk 0:00:09]} 39. Kc2 {[%clk 0:00:19]}  bxc4 {[%clk 0:00:09]} 40. Rxc4 {[%clk 0:00:19]}  Rb7 {[%clk 0:00:09]} 41. b4 {[%clk 0:00:15]}  Kxd5 {[%clk 0:00:09]} 42. Rh4 {[%clk 0:00:16]}  Kc6 {[%clk 0:00:09]} 43. Kc3 {[%clk 0:00:16]}  Kb5 {[%clk 0:00:10]} 44. Rh5+ {[%clk 0:00:16]}  Kb6 {[%clk 0:00:10]} 45. Kc4 {[%clk 0:00:16]}  Rg7 {[%clk 0:00:10]} 46. Kd5 {[%clk 0:00:16]}  Rg6 {[%clk 0:00:09]} 47. Kc4 {[%clk 0:00:16]}  a6 {[%clk 0:00:08]} 48. Rf5 {[%clk 0:00:15]}  Rg4+ {[%clk 0:00:08]} 49. Kb3 {[%clk 0:00:15]}  Rd4 {[%clk 0:00:06]} 50. Kc3 {[%clk 0:00:15]}  Re4 {[%clk 0:00:07]} 51. Rh5 {[%clk 0:00:14]}  Re1 {[%clk 0:00:07]} 52. Rg5 {[%clk 0:00:13]}  Rd1 {[%clk 0:00:07]} 53. Kc4 {[%clk 0:00:14]}  Rc1+ {[%clk 0:00:05]} 54. Kd4 {[%clk 0:00:11]}  Rc2 {[%clk 0:00:04]} 55. Rh5 {[%clk 0:00:11]}  Kc6 {[%clk 0:00:03]} 56. Ra5 {[%clk 0:00:10]}  Kb7 {[%clk 0:00:03]} 57. Rh5 {[%clk 0:00:10]}  Kb6 {[%clk 0:00:03]} 58. Rg5 {[%clk 0:00:10]}  Rc8 {[%clk 0:00:03]} 59. Rh5 {[%clk 0:00:10]}  Rg8 {[%clk 0:00:03]} 60. Rf5 {[%clk 0:00:10]}  Rg4+ {[%clk 0:00:04]} 61. Kc3 {[%clk 0:00:11]}  Kc6 {[%clk 0:00:04]} 62. Ra5 {[%clk 0:00:10]}  Kb7 {[%clk 0:00:04]} 63. Rd5 {[%clk 0:00:11]}  Rg6 {[%clk 0:00:03]} 64. Kc4 {[%clk 0:00:10]}  Kb6 {[%clk 0:00:03]} 65. Rh5 {[%clk 0:00:10]}  Rg4+ {[%clk 0:00:03]} 66. Kc3 {[%clk 0:00:10]}  Kc6 {[%clk 0:00:03]} 67. Ra5 {[%clk 0:00:09]}  Rg3+ {[%clk 0:00:03]} 68. Kc4 {[%clk 0:00:09]}  Kb6 {[%clk 0:00:03]} 69. Rh5 {[%clk 0:00:09]}  Rg8 {[%clk 0:00:04]} 70. Rd5 {[%clk 0:00:09]}  Rc8+ {[%clk 0:00:04]} 71. Kb3 {[%clk 0:00:08]}  Kc6 {[%clk 0:00:04]} 72. Ra5 {[%clk 0:00:08]}  Ra8 {[%clk 0:00:05]} 73. Kc4 {[%clk 0:00:08]}  Kd7 {[%clk 0:00:05]} 74. Rg5 {[%clk 0:00:08]}  Rc8+ {[%clk 0:00:03]} 75. Kd4 {[%clk 0:00:08]}  Ke6 {[%clk 0:00:03]} 76. Rg6+ {[%clk 0:00:08]}  Ke7 {[%clk 0:00:04]} 77. Rg7+ {[%clk 0:00:08]}  Kf6 {[%clk 0:00:04]} 78. Rh7 {[%clk 0:00:09]}  Rb8 {[%clk 0:00:04]} 79. Rh6+ {[%clk 0:00:09]}  Ke7 {[%clk 0:00:05]} 80. Rh7+ {[%clk 0:00:10]}  Ke6 {[%clk 0:00:05]} 81. Kc4 {[%clk 0:00:10]}  Rc8+ {[%clk 0:00:04]} 82. Kd4 {[%clk 0:00:10]}  Rb8 {[%clk 0:00:05]} 83. Rh6+ {[%clk 0:00:10]}  Kd7 {[%clk 0:00:04]} 84. Rh7+ {[%clk 0:00:11]}  Kc6 {[%clk 0:00:04]} 85. Kc4 {[%clk 0:00:11]}  d5+ {[%clk 0:00:05]} 86. Kc3 {[%clk 0:00:11]}  Kb5 {[%clk 0:00:04]} 87. Rc7 {[%clk 0:00:10]}  d4+ {[%clk 0:00:03]} 88. Kb3 {[%clk 0:00:09]}  Kb6 {[%clk 0:00:03]} 89. Rd7 {[%clk 0:00:09]}  Kc6 {[%clk 0:00:02]} 90. Rxd4 {[%clk 0:00:09]}  Re8 {[%clk 0:00:02]} 91. Rc4+ {[%clk 0:00:09]}  Kb5 {[%clk 0:00:03]} 92. Rc5+ {[%clk 0:00:10]}  Kb6 {[%clk 0:00:03]} 93. Rh5 {[%clk 0:00:10]}  Re3+ {[%clk 0:00:03]} 94. Kc4 {[%clk 0:00:11]}  Re4+ {[%clk 0:00:04]} 95. Kc3 {[%clk 0:00:11]}  Re3+ {[%clk 0:00:04]} 96. Kc4 {[%clk 0:00:12]}  Re4+ {[%clk 0:00:04]} 97. Kc3 {[%clk 0:00:12]}  Re3+ {[%clk 0:00:05]} 98. Kd4 {[%clk 0:00:12]}  Rb3 {[%clk 0:00:04]} 99. Kc4 {[%clk 0:00:11]}  Rg3 {[%clk 0:00:05]} 100. Rh6+ {[%clk 0:00:11]}  Kb7 {[%clk 0:00:05]} 101. Kc5 {[%clk 0:00:12]}  Rg5+ {[%clk 0:00:05]} 102. Kc4 {[%clk 0:00:12]}  Rg4+ {[%clk 0:00:05]} 103. Kc5 {[%clk 0:00:12]}  Rg5+ {[%clk 0:00:06]} 104. Kc4 {[%clk 0:00:13]}  Ka7 {[%clk 0:00:06]} 105. Rh7+ {[%clk 0:00:13]}  Kb6 {[%clk 0:00:06]} 106. Rh6+ {[%clk 0:00:14]}  Kb7 {[%clk 0:00:07]} 107. Rh7+ {[%clk 0:00:14]}  Kb6 {[%clk 0:00:07]} 108. Rh6+ {[%clk 0:00:15]}  Ka7 {[%clk 0:00:08]} 109. Rh7+ {[%clk 0:00:15]}  Kb8 {[%clk 0:00:08]} 110. Rh8+ {[%clk 0:00:16]}  Kc7 {[%clk 0:00:08]} 111. Rh7+ {[%clk 0:00:16]}  Kc6 {[%clk 0:00:08]} 112. Rh6+ {[%clk 0:00:17]}  Kb7 {[%clk 0:00:08]} 113. Rh7+ {[%clk 0:00:18]}  Kc8 {[%clk 0:00:08]} 114. Rh8+ {[%clk 0:00:18]}  Kc7 {[%clk 0:00:08]} 115. Rh7+ {[%clk 0:00:19]}  Kb8 {[%clk 0:00:08]} 116. Rh6 {[%clk 0:00:19]}  Kb7 {[%clk 0:00:08]} 1/2-1/2


[Site "https://www.chess.com"]

[Event "Titled Tuesday Blitz December 20 Late 2022"]
[White "Radovanovic, Dusan"]
[Black "Liu, Kelsey"]
[WhiteFideId "926868"]
[BlackFideId "30944481"]
[WhiteElo "2337"]
[BlackElo "2300"]
[Result "1-0"]
[Round "05"]
[TimeControl "180+1"]
[Date "2022.12.21"]
[WhiteClock "0:00:04"]
[BlackClock "0:00:01"]

1. e4 {[%clk 0:03:00]}  c5 {[%clk 0:02:55]} 2. Nf3 {[%clk 0:03:00]}  e6 {[%clk 0:02:54]} 3. d4 {[%clk 0:03:01]}  cxd4 {[%clk 0:02:55]} 4. Nxd4 {[%clk 0:03:01]}  Nc6 {[%clk 0:02:55]} 5. Nc3 {[%clk 0:03:01]}  Nf6 {[%clk 0:02:56]} 6. Be2 {[%clk 0:02:54]}  Bb4 {[%clk 0:02:53]} 7. Nxc6 {[%clk 0:02:53]}  bxc6 {[%clk 0:02:53]} 8. O-O {[%clk 0:02:53]}  O-O {[%clk 0:02:51]} 9. e5 {[%clk 0:02:46]}  Nd5 {[%clk 0:02:43]} 10. Ne4 {[%clk 0:02:43]}  Qc7 {[%clk 0:02:35]} 11. Nd6 {[%clk 0:02:39]}  f6 {[%clk 0:02:20]} 12. a3 {[%clk 0:02:38]}  Bc5 {[%clk 0:01:54]} 13. b4 {[%clk 0:02:31]}  Bb6 {[%clk 0:01:53]} 14. Bb2 {[%clk 0:02:21]}  Nf4 {[%clk 0:01:38]} 15. Bf3 {[%clk 0:02:13]}  Ba6 {[%clk 0:01:32]} 16. c4 {[%clk 0:02:00]}  Qd8 {[%clk 0:01:20]} 17. exf6 {[%clk 0:01:54]}  gxf6 {[%clk 0:01:17]} 18. Qd2 {[%clk 0:01:49]}  e5 {[%clk 0:01:10]} 19. Rfe1 {[%clk 0:01:26]}  Rb8 {[%clk 0:00:48]} 20. Be4 {[%clk 0:01:16]}  Qe7 {[%clk 0:00:33]} 21. Bf5 {[%clk 0:01:09]}  Qg7 {[%clk 0:00:31]} 22. g3 {[%clk 0:01:06]}  Qg5 {[%clk 0:00:21]} 23. Kh1 {[%clk 0:01:04]}  Nh3 {[%clk 0:00:09]} 24. Qxg5+ {[%clk 0:00:57]}  Nxg5 {[%clk 0:00:10]} 25. Kg2 {[%clk 0:00:53]}  Rfd8 {[%clk 0:00:06]} 26. Rac1 {[%clk 0:00:45]}  c5 {[%clk 0:00:06]} 27. b5 {[%clk 0:00:35]}  Bb7+ {[%clk 0:00:06]} 28. Nxb7 {[%clk 0:00:35]}  Rxb7 {[%clk 0:00:07]} 29. h4 {[%clk 0:00:34]}  Nf7 {[%clk 0:00:07]} 30. Rcd1 {[%clk 0:00:32]}  d6 {[%clk 0:00:05]} 31. Bc3 {[%clk 0:00:29]}  Re7 {[%clk 0:00:05]} 32. a4 {[%clk 0:00:28]}  Nh6 {[%clk 0:00:05]} 33. Be4 {[%clk 0:00:27]}  f5 {[%clk 0:00:05]} 34. Bd5+ {[%clk 0:00:26]}  Kf8 {[%clk 0:00:06]} 35. a5 {[%clk 0:00:24]}  Bc7 {[%clk 0:00:06]} 36. Rb1 {[%clk 0:00:23]}  Rb8 {[%clk 0:00:06]} 37. Bd2 {[%clk 0:00:17]}  Ng4 {[%clk 0:00:06]} 38. Rb3 {[%clk 0:00:14]}  Nf6 {[%clk 0:00:06]} 39. Reb1 {[%clk 0:00:14]}  Nxd5 {[%clk 0:00:06]} 40. cxd5 {[%clk 0:00:15]}  Bd8 {[%clk 0:00:04]} 41. b6 {[%clk 0:00:15]}  axb6 {[%clk 0:00:05]} 42. axb6 {[%clk 0:00:16]}  Reb7 {[%clk 0:00:06]} 43. Ba5 {[%clk 0:00:15]}  Ra8 {[%clk 0:00:06]} 44. Rb5 {[%clk 0:00:15]}  Ke7 {[%clk 0:00:05]} 45. Kf3 {[%clk 0:00:15]}  Kd7 {[%clk 0:00:05]} 46. g4 {[%clk 0:00:15]}  fxg4+ {[%clk 0:00:04]} 47. Kxg4 {[%clk 0:00:16]}  Be7 {[%clk 0:00:03]} 48. Kf5 {[%clk 0:00:16]}  Rf8+ {[%clk 0:00:04]} 49. Kg4 {[%clk 0:00:13]}  Rxf2 {[%clk 0:00:04]} 50. Kg3 {[%clk 0:00:14]}  Rf4 {[%clk 0:00:04]} 51. Bd2 {[%clk 0:00:10]}  Rf7 {[%clk 0:00:04]} 52. Bg5 {[%clk 0:00:09]}  Rg7 {[%clk 0:00:04]} 53. Kh3 {[%clk 0:00:09]}  Bxg5 {[%clk 0:00:04]} 54. hxg5 {[%clk 0:00:09]}  Rxg5 {[%clk 0:00:05]} 55. Ra5 {[%clk 0:00:10]}  Rg8 {[%clk 0:00:04]} 56. Ra2 {[%clk 0:00:08]}  Rgb8 {[%clk 0:00:04]} 57. Rg2 {[%clk 0:00:08]}  Rxb6 {[%clk 0:00:04]} 58. Rg7+ {[%clk 0:00:08]}  Kc8 {[%clk 0:00:04]} 59. Rf1 {[%clk 0:00:08]}  Rb3+ {[%clk 0:00:03]} 60. Kh4 {[%clk 0:00:08]}  R8b4+ {[%clk 0:00:04]} 61. Kh5 {[%clk 0:00:08]}  Rh3+ {[%clk 0:00:04]} 62. Kg5 {[%clk 0:00:08]}  Rg3+ {[%clk 0:00:04]} 63. Kf6 {[%clk 0:00:08]}  Rxg7 {[%clk 0:00:04]} 64. Kxg7 {[%clk 0:00:09]}  h5 {[%clk 0:00:03]} 65. Kf6 {[%clk 0:00:08]}  Kc7 {[%clk 0:00:03]} 66. Ke6 {[%clk 0:00:09]}  h4 {[%clk 0:00:04]} 67. Rf7+ {[%clk 0:00:09]}  Kb6 {[%clk 0:00:04]} 68. Kxd6 {[%clk 0:00:08]}  h3 {[%clk 0:00:04]} 69. Rh7 {[%clk 0:00:08]}  Re4 {[%clk 0:00:02]} 70. Ke6 {[%clk 0:00:07]}  c4 {[%clk 0:00:02]} 71. d6 {[%clk 0:00:07]}  Rd4 {[%clk 0:00:01]} 72. Kxe5 {[%clk 0:00:06]}  Rd3 {[%clk 0:00:01]} 73. Ke6 {[%clk 0:00:04]} 1-0


[Site "https://www.chess.com"]

[Event "Titled Tuesday Blitz December 20 Late 2022"]
[White "Rasulov, Vugar"]
[Black "Tari, Aryan"]
[WhiteFideId "13402390"]
[BlackFideId "1510045"]
[WhiteElo "2509"]
[BlackElo "2620"]
[Result "1/2-1/2"]
[Round "05"]
[TimeControl "180+1"]
[Date "2022.12.20"]
[WhiteClock "0:00:59"]
[BlackClock "0:00:09"]

1. e4 {[%clk 0:03:00]}  c6 {[%clk 0:02:54]} 2. d4 {[%clk 0:03:00]}  d5 {[%clk 0:02:54]} 3. exd5 {[%clk 0:03:00]}  cxd5 {[%clk 0:02:55]} 4. Nf3 {[%clk 0:03:00]}  Nc6 {[%clk 0:02:44]} 5. Ne5 {[%clk 0:03:00]}  a6 {[%clk 0:02:44]} 6. c3 {[%clk 0:02:51]}  Nxe5 {[%clk 0:02:41]} 7. dxe5 {[%clk 0:02:52]}  Bf5 {[%clk 0:02:42]} 8. Nd2 {[%clk 0:02:48]}  e6 {[%clk 0:02:42]} 9. Nf3 {[%clk 0:02:48]}  Ne7 {[%clk 0:02:42]} 10. Bd3 {[%clk 0:02:45]}  Bxd3 {[%clk 0:02:39]} 11. Qxd3 {[%clk 0:02:46]}  Nc6 {[%clk 0:02:34]} 12. O-O {[%clk 0:02:46]}  Be7 {[%clk 0:02:34]} 13. Bf4 {[%clk 0:02:43]}  O-O {[%clk 0:02:32]} 14. Rfe1 {[%clk 0:02:42]}  b5 {[%clk 0:02:31]} 15. a4 {[%clk 0:02:33]}  b4 {[%clk 0:02:27]} 16. Nd4 {[%clk 0:02:34]}  Qb6 {[%clk 0:02:14]} 17. Nxc6 {[%clk 0:02:18]}  Qxc6 {[%clk 0:02:15]} 18. cxb4 {[%clk 0:02:18]}  Bxb4 {[%clk 0:02:15]} 19. Rec1 {[%clk 0:02:19]}  Qb7 {[%clk 0:02:06]} 20. h4 {[%clk 0:02:16]}  Be7 {[%clk 0:01:56]} 21. h5 {[%clk 0:02:16]}  Rfc8 {[%clk 0:01:44]} 22. b3 {[%clk 0:02:06]}  h6 {[%clk 0:01:41]} 23. Bd2 {[%clk 0:01:53]}  Rab8 {[%clk 0:01:06]} 24. b4 {[%clk 0:01:33]}  Rxc1+ {[%clk 0:01:02]} 25. Rxc1 {[%clk 0:01:34]}  Bxb4 {[%clk 0:01:00]} 26. Bxb4 {[%clk 0:01:28]}  Qxb4 {[%clk 0:01:00]} 27. Qxa6 {[%clk 0:01:29]}  Qd2 {[%clk 0:00:41]} 28. Rf1 {[%clk 0:01:14]}  Rb2 {[%clk 0:00:33]} 29. a5 {[%clk 0:01:08]}  Ra2 {[%clk 0:00:30]} 30. Qc8+ {[%clk 0:01:08]}  Kh7 {[%clk 0:00:30]} 31. a6 {[%clk 0:01:09]}  Qd3 {[%clk 0:00:18]} 32. Qb7 {[%clk 0:01:03]}  Rxa6 {[%clk 0:00:16]} 33. Qxf7 {[%clk 0:01:04]}  Qe4 {[%clk 0:00:14]} 34. g3 {[%clk 0:01:00]}  Qxe5 {[%clk 0:00:07]} 35. Qg6+ {[%clk 0:01:00]}  Kh8 {[%clk 0:00:07]} 36. Qe8+ {[%clk 0:00:57]}  Kh7 {[%clk 0:00:08]} 37. Qg6+ {[%clk 0:00:58]}  Kh8 {[%clk 0:00:08]} 38. Qe8+ {[%clk 0:00:59]}  Kh7 {[%clk 0:00:09]} 39. Qg6+ {[%clk 0:00:59]} 1/2-1/2


[Site "https://www.chess.com"]

[Event "Titled Tuesday Blitz December 20 Late 2022"]
[White "Rego, Pedro Filipe"]
[Black "Dudzinski, Pawel"]
[WhiteFideId "1904310"]
[BlackFideId "1117890"]
[WhiteElo "2193"]
[BlackElo "2099"]
[Result "1-0"]
[Round "05"]
[TimeControl "180+1"]
[Date "2022.12.21"]
[WhiteClock "0:00:22"]
[BlackClock "0:00:03"]

1. c4 {[%clk 0:02:57]}  e5 {[%clk 0:02:56]} 2. g3 {[%clk 0:02:55]}  c5 {[%clk 0:02:56]} 3. Bg2 {[%clk 0:02:55]}  Nc6 {[%clk 0:02:56]} 4. Nc3 {[%clk 0:02:56]}  g6 {[%clk 0:02:57]} 5. e4 {[%clk 0:02:54]}  Bg7 {[%clk 0:02:57]} 6. Nge2 {[%clk 0:02:55]}  Nge7 {[%clk 0:02:58]} 7. O-O {[%clk 0:02:55]}  Rb8 {[%clk 0:02:57]} 8. d3 {[%clk 0:02:53]}  a6 {[%clk 0:02:57]} 9. a4 {[%clk 0:02:50]}  O-O {[%clk 0:02:56]} 10. Be3 {[%clk 0:02:50]}  d6 {[%clk 0:02:54]} 11. Rb1 {[%clk 0:02:44]}  f5 {[%clk 0:02:49]} 12. f3 {[%clk 0:02:44]}  Nd4 {[%clk 0:02:45]} 13. b4 {[%clk 0:02:36]}  Bd7 {[%clk 0:02:32]} 14. b5 {[%clk 0:02:25]}  axb5 {[%clk 0:02:29]} 15. axb5 {[%clk 0:02:25]}  Ra8 {[%clk 0:02:22]} 16. Ra1 {[%clk 0:02:14]}  Rxa1 {[%clk 0:02:09]} 17. Qxa1 {[%clk 0:02:15]}  f4 {[%clk 0:02:04]} 18. Bf2 {[%clk 0:02:07]}  g5 {[%clk 0:01:54]} 19. Nxd4 {[%clk 0:01:47]}  exd4 {[%clk 0:01:51]} 20. Nd5 {[%clk 0:01:40]}  Nxd5 {[%clk 0:01:42]} 21. exd5 {[%clk 0:01:33]}  Bf5 {[%clk 0:01:41]} 22. Qd1 {[%clk 0:01:22]}  Re8 {[%clk 0:01:35]} 23. g4 {[%clk 0:01:19]}  Bg6 {[%clk 0:01:34]} 24. Re1 {[%clk 0:01:18]}  Re3 {[%clk 0:01:31]} 25. Bxe3 {[%clk 0:01:12]}  dxe3 {[%clk 0:01:32]} 26. Qe2 {[%clk 0:01:10]}  Qa5 {[%clk 0:01:18]} 27. Rb1 {[%clk 0:01:03]}  Bd4 {[%clk 0:00:59]} 28. Bf1 {[%clk 0:00:58]}  Bxd3 {[%clk 0:00:18]} 29. Qxd3 {[%clk 0:00:54]}  e2+ {[%clk 0:00:18]} 30. Kg2 {[%clk 0:00:51]}  e1=Q {[%clk 0:00:16]} 31. Rxe1 {[%clk 0:00:40]}  Qxe1 {[%clk 0:00:17]} 32. Qe2 {[%clk 0:00:38]}  Qxe2+ {[%clk 0:00:14]} 33. Bxe2 {[%clk 0:00:39]}  Kf7 {[%clk 0:00:11]} 34. b6 {[%clk 0:00:39]}  Bc3 {[%clk 0:00:07]} 35. Bd3 {[%clk 0:00:39]}  Ba5 {[%clk 0:00:06]} 36. Bxh7 {[%clk 0:00:37]}  Bxb6 {[%clk 0:00:05]} 37. Bf5 {[%clk 0:00:37]}  Ba5 {[%clk 0:00:05]} 38. Bc8 {[%clk 0:00:36]}  b6 {[%clk 0:00:06]} 39. Bd7 {[%clk 0:00:35]}  Kf6 {[%clk 0:00:06]} 40. Bb5 {[%clk 0:00:29]}  Ke5 {[%clk 0:00:07]} 41. h4 {[%clk 0:00:26]}  gxh4 {[%clk 0:00:05]} 42. Kh3 {[%clk 0:00:27]}  Be1 {[%clk 0:00:05]} 43. Bd7 {[%clk 0:00:26]}  Kd4 {[%clk 0:00:03]} 44. Bb5 {[%clk 0:00:23]}  Ke3 {[%clk 0:00:03]} 45. g5 {[%clk 0:00:22]} 1-0


[Site "https://www.chess.com"]

[Event "Titled Tuesday Blitz December 20 Late 2022"]
[White "Reprintsev, Alexander"]
[Black "Vetoshko, Volodymyr"]
[WhiteFideId "14100541"]
[BlackFideId "14122480"]
[WhiteElo "2230"]
[BlackElo "2422"]
[Result "0-1"]
[Round "05"]
[TimeControl "180+1"]
[Date "2022.12.21"]
[WhiteClock "0:00:10"]
[BlackClock "0:00:08"]

1. e4 {[%clk 0:02:57]}  c6 {[%clk 0:02:53]} 2. Nc3 {[%clk 0:02:53]}  d5 {[%clk 0:02:53]} 3. Nf3 {[%clk 0:02:47]}  dxe4 {[%clk 0:02:54]} 4. Nxe4 {[%clk 0:02:46]}  Nf6 {[%clk 0:02:54]} 5. Qe2 {[%clk 0:02:47]}  Nxe4 {[%clk 0:02:53]} 6. Qxe4 {[%clk 0:02:47]}  Qd5 {[%clk 0:02:53]} 7. Qf4 {[%clk 0:02:46]}  Qf5 {[%clk 0:02:46]} 8. d4 {[%clk 0:02:22]}  Qxf4 {[%clk 0:02:34]} 9. Bxf4 {[%clk 0:02:22]}  Bf5 {[%clk 0:02:35]} 10. O-O-O {[%clk 0:02:20]}  e6 {[%clk 0:02:32]} 11. Nh4 {[%clk 0:02:19]}  Bg4 {[%clk 0:02:23]} 12. f3 {[%clk 0:02:19]}  Bh5 {[%clk 0:02:20]} 13. g4 {[%clk 0:02:19]}  Bg6 {[%clk 0:02:05]} 14. Nxg6 {[%clk 0:02:18]}  hxg6 {[%clk 0:02:06]} 15. h4 {[%clk 0:02:19]}  Nd7 {[%clk 0:02:01]} 16. c4 {[%clk 0:02:15]}  Be7 {[%clk 0:02:00]} 17. Bg3 {[%clk 0:02:14]}  O-O-O {[%clk 0:01:53]} 18. Kc2 {[%clk 0:02:08]}  Nf6 {[%clk 0:01:50]} 19. Kc3 {[%clk 0:01:57]}  Rd7 {[%clk 0:01:43]} 20. Be2 {[%clk 0:01:45]}  Rhd8 {[%clk 0:01:41]} 21. Bf2 {[%clk 0:01:45]}  Bd6 {[%clk 0:01:32]} 22. h5 {[%clk 0:01:30]}  gxh5 {[%clk 0:01:33]} 23. g5 {[%clk 0:01:29]}  Ng8 {[%clk 0:01:15]} 24. Rxh5 {[%clk 0:01:22]}  Ne7 {[%clk 0:01:15]} 25. Rh7 {[%clk 0:01:18]}  e5 {[%clk 0:01:05]} 26. d5 {[%clk 0:01:09]}  cxd5 {[%clk 0:00:56]} 27. cxd5 {[%clk 0:01:09]}  Bc7 {[%clk 0:00:51]} 28. Rxg7 {[%clk 0:00:54]}  Nxd5+ {[%clk 0:00:50]} 29. Kb3 {[%clk 0:00:54]}  Bb6 {[%clk 0:00:27]} 30. Bxb6 {[%clk 0:00:48]}  Nxb6 {[%clk 0:00:26]} 31. Rxd7 {[%clk 0:00:47]}  Rxd7 {[%clk 0:00:27]} 32. Bb5 {[%clk 0:00:36]}  Rd5 {[%clk 0:00:22]} 33. a4 {[%clk 0:00:26]}  a6 {[%clk 0:00:22]} 34. Be8 {[%clk 0:00:17]}  Rd3+ {[%clk 0:00:20]} 35. Kc2 {[%clk 0:00:15]}  Rxf3 {[%clk 0:00:19]} 36. Bxf7 {[%clk 0:00:15]}  e4 {[%clk 0:00:17]} 37. Bh5 {[%clk 0:00:12]}  Rf2+ {[%clk 0:00:16]} 38. Kc3 {[%clk 0:00:12]}  e3 {[%clk 0:00:13]} 39. Re7 {[%clk 0:00:11]}  Nd5+ {[%clk 0:00:13]} 40. Kd4 {[%clk 0:00:11]}  Nxe7 {[%clk 0:00:13]} 41. Kxe3 {[%clk 0:00:12]}  Rg2 {[%clk 0:00:11]} 42. Kf4 {[%clk 0:00:11]}  Kd8 {[%clk 0:00:08]} 43. b4 {[%clk 0:00:10]}  Rb2 {[%clk 0:00:07]} 44. b5 {[%clk 0:00:10]}  axb5 {[%clk 0:00:08]} 45. axb5 {[%clk 0:00:10]}  Rxb5 {[%clk 0:00:08]} 46. Bg4 {[%clk 0:00:10]}  Rb4+ {[%clk 0:00:08]} 0-1


[Site "https://www.chess.com"]